bitfinex-derivatives/quotes_ETHF0:USTF0_20250902
["timestamp","ask_amount","ask_price","bid_price","bid_amount"]
[1756778907598,0.7105,4333.3,4333.2,0.3987]
[1756778909498,0.7105,4333.3,4333.2,0.1918]
[1756778910302,0.7105,4333.3,4332.6,3.2078]
[1756778910504,0.5101,4332.8,4332.7,0.86749]
[1756778910700,0.5101,4332.8,4332.7,0.6367]
[1756778910900,0.5101,4332.8,4332.7,0.8758]
[1756778911905,0.7105,4332.8,4332.7,0.238]
[1756778912301,0.2084,4332.2,4332.1,3.6065]
[1756778912505,0.7105,4332.2,4332.1,3.6065]
[1756778912904,0.7105,4332.2,4332.1,3.2078]
[1756778914202,0.7105,4332.2,4332.1,3.3996]
[1756778914596,0.7105,4332.2,4332.1,3.2078]
[1756778914997,0.3017,4332.1,4331.6,3.2078]
[1756778915200,0.7105,4331.7,4331.6,3.2078]
[1756778915704,0.1231,4331.5,4331.1,3.4458]
[1756778915905,0.7105,4331.2,4331.1,3.3996]
[1756778916106,0.7105,4331.2,4331.1,3.2078]
[1756778918304,0.7105,4331.2,4331.1,3.3996]
[1756778919606,0.7105,4331.2,4331.1,3.6065]
[1756778921810,0.1231,4332.0,4331.1,4.0839]
[1756778922011,0.3886,4331.9,4331.1,3.4458]
[1756778922314,0.3886,4331.0,4330.9,0.1957]
[1756778922617,0.8196,4331.0,4330.7,0.238]
[1756778922810,0.315,4330.9,4330.6,3.2078]
[1756778923010,0.5101,4330.7,4330.6,3.8428]
[1756778923215,0.315,4330.7,4330.6,3.8428]
[1756778925917,0.116,4331.5,4330.6,3.8428]
[1756778926216,0.315,4331.4,4330.7,0.238]
[1756778926614,0.315,4331.4,4331.3,0.635]
[1756778927818,0.5101,4331.4,4331.3,0.635]
[1756778928014,0.5101,4331.4,4331.3,0.3956]
[1756778928816,0.3886,4331.4,4330.6,3.4472]
[1756778929013,0.1951,4330.8,4330.7,0.6336]
[1756778929221,0.5101,4330.8,4330.7,0.3956]
[1756778929521,0.5101,4331.4,4331.3,0.3956]
[1756778929819,0.7036,4331.4,4331.3,0.3956]
[1756778933115,0.7036,4331.4,4331.3,0.1957]
[1756778936423,0.315,4331.3,4330.7,0.238]
[1756778936722,0.7036,4331.3,4331.2,0.1957]
[1756778938124,0.7036,4331.3,4330.7,0.238]
[1756778938422,0.315,4331.2,4330.6,3.4458]
[1756778938627,0.315,4331.4,4330.7,0.2394]
[1756778940628,0.7036,4331.4,4331.3,0.3956]
[1756778941123,0.7036,4331.4,4330.6,3.2078]
[1756778941124,0.3886,4331.4,4330.6,3.2078]
[1756778941426,0.7036,4330.7,4330.6,3.4035]
[1756778942017,0.7036,4330.7,4330.6,3.2078]
[1756778943322,0.7036,4330.7,4330.6,3.4035]
[1756778943528,0.7036,4330.7,4330.6,0.1957]
[1756778943827,0.7036,4330.7,4330.2,0.238]
[1756778944721,0.7036,4330.7,4330.6,0.3956]
[1756778944916,0.315,4330.7,4330.6,0.6341]
[1756778945922,3.00705018,4332.0,4331.3,0.6341]
[1756778945923,0.5101,4331.4,4331.3,0.6341]
[1756778946123,1.06220256,4331.4,4331.3,0.6341]
[1756778946421,1.25570256,4331.4,4331.3,0.3956]
[1756778947225,0.1951,4330.9,4330.8,0.3956]
[1756778947425,0.7036,4330.9,4330.8,0.3956]
[1756778947625,0.315,4330.8,4330.6,3.2078]
[1756778947829,0.7036,4330.7,4330.6,3.4035]
[1756778948021,0.5101,4330.7,4330.6,3.6034]
[1756778948220,0.315,4330.7,4330.6,3.8419]
[1756778948625,0.5101,4330.7,4330.6,3.8419]
[1756778948828,0.7036,4330.7,4330.6,3.6034]
[1756778949522,0.7036,4330.7,4330.6,3.2078]
[1756778949927,0.7036,4330.7,4330.3,0.238]
[1756778950230,0.7036,4330.7,4330.6,0.3956]
[1756778953028,0.7101,4330.3,4330.2,0.21]
[1756778953217,0.7101,4330.3,4330.2,0.448]
[1756778953829,0.7101,4330.3,4330.2,0.6526]
[1756778954627,0.7101,4330.3,4330.2,0.8919]
[1756778955629,0.3063,4330.3,4330.2,0.8919]
[1756778956929,0.3063,4330.3,4330.2,1.70559513]
[1756778958233,0.3063,4330.3,4330.2,0.8919]
[1756778958420,0.5068,4330.3,4330.2,0.8919]
[1756778958732,0.3063,4330.9,4330.2,0.8919]
[1756778958935,0.7101,4330.9,4330.8,0.4146]
[1756778961330,0.5068,4330.9,4330.8,0.4146]
[1756778961528,0.5068,4330.9,4330.8,0.6539]
[1756778961529,0.3063,4330.9,4330.8,0.6539]
[1756778962734,0.7101,4330.9,4330.8,0.4146]
[1756778963433,0.7101,4330.9,4330.5,3.2078]
[1756778963627,0.7101,4330.7,4330.6,0.238]
[1756778964436,0.7101,4330.6,4330.5,3.4458]
[1756778964633,0.3063,4330.6,4330.5,4.0997]
[1756778964836,0.3063,4330.6,4330.5,4.91339513]
[1756778965030,0.3063,4330.9,4330.6,0.2393]
[1756778965235,0.3063,4330.9,4330.8,0.6539]
[1756778965537,0.5068,4330.9,4330.8,0.6539]
[1756778966238,0.5068,4330.9,4330.8,0.4146]
[1756778966437,0.7101,4330.9,4330.8,0.21]
[1756778966639,0.4038,4330.8,4330.6,0.238]
[1756778966937,1.52379513,4330.7,4330.6,0.238]
[1756778967536,1.52379513,4330.7,4330.6,0.448]
[1756778967733,0.7101,4330.7,4330.6,0.448]
[1756778968038,0.3063,4331.2,4330.6,0.8919]
[1756778968238,0.75314667,4331.1,4331.0,0.4146]
[1756778968440,1.26274667,4331.1,4331.0,0.4146]
[1756778968938,1.26274667,4331.1,4331.0,0.21]
[1756778969140,0.4038,4330.7,4330.6,0.448]
[1756778969343,0.7101,4330.7,4330.6,0.6526]
[1756778969637,0.5068,4330.7,4330.6,0.8919]
[1756778971938,0.7101,4330.7,4330.6,0.6526]
[1756778974443,0.7101,4330.7,4330.6,0.448]
[1756778974641,0.7101,4330.7,4330.6,0.6526]
[1756778975040,0.7101,4330.7,4330.6,0.8919]
[1756778975847,0.7101,4330.7,4330.6,0.6526]
[1756778978051,0.5068,4330.7,4330.6,0.8919]
[1756778979551,0.7101,4330.7,4330.6,0.6526]
[1756778980048,0.7101,4330.7,4330.6,0.448]
[1756778980249,0.7101,4330.7,4330.6,0.21]
[1756778980546,0.7101,4330.7,4330.6,0.448]
[1756778980752,0.7101,4330.7,4330.1,1.64159926]
[1756778980753,0.1231,4330.5,4330.1,1.64159926]
[1756778980956,0.3063,4330.1,4330.0,44.0078]
[1756778981153,0.3063,4330.1,4330.0,44.2458]
[1756778981556,0.3063,4330.1,4330.0,44.0078]
[1756778981757,0.3063,4330.1,4330.0,44.2458]
[1756778982762,0.7157,4330.1,4330.0,3.4458]
[1756778983265,0.7157,4330.1,4330.0,3.4084]
[1756778983464,0.7157,4330.1,4330.0,3.6464]
[1756778984167,0.7157,4330.1,4330.0,3.8375]
[1756778984860,0.1231,4331.0,4330.0,3.8375]
[1756778984861,0.93679513,4331.0,4330.0,4.0769]
[1756778985065,0.7066,4330.4,4330.3,1.20539513]
[1756778985266,0.7066,4330.4,4330.3,0.6297]
[1756778986462,0.2972,4330.3,4330.0,3.2078]
[1756778986764,0.2972,4330.3,4329.0,3.2078]
[1756778986765,0.4094,4329.1,4329.0,3.2078]
[1756778986954,1.52029513,4329.1,4329.0,44.0078]
[1756778987160,1.52029513,4329.1,4329.0,3.2078]
[1756778989065,1.52029513,4329.1,4329.0,3.4084]
[1756778989261,1.52029513,4329.1,4329.0,3.2078]
[1756778990661,0.7066,4329.1,4329.0,3.2078]
[1756778990860,0.7066,4329.1,4329.0,3.4084]
[1756778991262,0.5058,4329.1,4329.0,3.8389]
[1756778991969,0.7066,4329.1,4329.0,3.2078]
[1756778993676,0.5058,4329.1,4329.0,3.5995]
[1756778994173,0.5058,4329.1,4329.0,3.8389]
[1756778994866,0.5058,4329.1,4329.0,3.5995]
[1756778995672,0.5058,4329.1,4329.0,3.8389]
[1756778995873,0.5058,4329.1,4329.0,3.5995]
[1756778996073,0.7066,4329.1,4329.0,3.5995]
[1756778996275,0.7066,4329.1,4329.0,3.4084]
[1756778996475,0.7066,4329.1,4329.0,3.2078]
[1756778996677,0.7066,4329.1,4329.0,3.5995]
[1756778996977,0.89568098,4329.1,4329.0,3.5995]
[1756778997279,0.89568098,4329.1,4329.0,3.4084]
[1756778997576,0.8956585,4329.1,4329.0,3.4084]
[1756778997876,0.8956585,4329.1,4329.0,3.2078]
[1756778999170,0.8956585,4329.1,4329.0,3.4084]
[1756778999370,0.8956585,4329.1,4329.0,3.5995]
[1756779000478,0.89563985,4329.1,4329.0,3.5995]
[1756779001179,0.18903985,4329.1,4329.0,4.0758]
[1756779002479,0.48623985,4329.1,4329.0,4.0758]
[1756779002673,0.18903985,4329.1,4329.0,5.03413022]
[1756779002874,1.8939,4329.5,4329.0,8.93283022]
[1756779003178,1.6546,4329.5,4329.4,2.00505022]
[1756779003376,1.6546,4329.5,4329.4,43.04205022]
[1756779003573,0.5058,4330.5,4329.5,0.4157]
[1756779003773,1.08143022,4331.0,4330.3,3.2078]
[1756779003774,0.48618878,4330.4,4330.3,3.2078]
[1756779004579,0.18898878,4330.4,4330.3,3.2078]
[1756779005574,0.18898878,4330.4,4330.3,7.43873]
[1756779005777,0.2086,4331.4,4330.3,7.2078]
[1756779006072,0.7066,4330.9,4330.8,3.2078]
[1756779006269,0.89555525,4330.9,4330.8,3.4448]
[1756779009077,0.69475525,4330.9,4330.8,3.4448]
[1756779009577,0.89555525,4330.9,4330.8,3.4448]
[1756779009777,0.89552051,4330.9,4330.8,3.4448]
[1756779009980,0.89552051,4330.9,4330.8,3.2078]
[1756779010181,0.89552051,4330.9,4330.8,3.4448]
[1756779010784,0.89552051,4330.9,4330.8,3.2078]
[1756779010979,0.2983,4330.8,4330.1,3.2078]
[1756779011177,0.6934,4330.3,4330.1,3.2078]
[1756779011379,0.88232051,4330.2,4330.1,3.2078]
[1756779011581,0.88232051,4330.2,4330.1,3.4448]
[1756779011876,1.54235073,4330.2,4329.5,3.2078]
[1756779012175,0.6934,4329.7,4329.6,0.237]
[1756779012382,0.48722051,4329.7,4329.6,0.237]
[1756779013472,0.48722051,4329.7,4329.5,44.0078]
[1756779013782,0.18892051,4329.6,4329.5,44.0078]
[1756779013981,0.18892051,4329.6,4329.5,44.2448]
[1756779014379,0.88232051,4329.6,4329.5,3.2078]
[1756779014578,1.84065073,4329.6,4329.5,3.2078]
[1756779019184,0.18892051,4329.6,4329.5,4.40313022]
[1756779019387,0.18892051,4329.9,4329.5,8.40313022]
[1756779019589,0.18892051,4329.8,4329.5,4.40313022]
[1756779019789,0.18892051,4329.7,4329.5,4.40313022]
[1756779020087,0.18892051,4329.6,4329.5,4.40313022]
[1756779020285,0.18905211,4329.6,4329.5,4.40313022]
[1756779022886,0.18905211,4329.6,4329.5,4.81884022]
[1756779023482,0.2983,4330.1,4329.5,4.40313022]
[1756779023682,0.18912562,4330.0,4329.5,4.40313022]
[1756779023882,0.2983,4329.8,4329.6,40.8]
[1756779024085,0.2983,4329.8,4329.7,0.237]
[1756779024284,0.18911939,4329.8,4329.6,40.8]
[1756779024485,0.48741939,4329.7,4329.6,40.8]
[1756779024684,0.48741939,4329.7,4329.6,41.037]
[1756779024988,0.48741939,4329.7,4329.6,40.8]
[1756779025187,0.48741939,4329.7,4329.6,41.037]
[1756779025688,0.48741939,4329.7,4329.6,0.237]
[1756779026993,0.2983,4329.7,4329.6,0.237]
[1756779028092,0.4999,4329.7,4329.6,0.237]
[1756779031092,0.6934,4329.7,4329.6,0.237]
[1756779033590,0.2983,4329.6,4329.5,3.2078]
[1756779033793,0.6934,4329.6,4329.5,3.2078]
[1756779040791,0.2983,4330.2,4329.5,3.4448]
[1756779041094,0.6905,4329.6,4329.5,3.2078]
[1756779041293,0.6905,4329.6,4329.5,3.4448]
[1756779041794,0.2928,4329.6,4329.5,3.4448]
[1756779042194,0.6985,4329.6,4329.5,3.4448]
[1756779044795,0.6985,4329.6,4329.5,3.2078]
[1756779045693,0.8217,4329.0,4328.9,3.2078]
[1756779045898,0.8217,4329.0,4328.9,3.4448]
[1756779046495,0.8217,4329.0,4328.9,3.2078]
[1756779046996,0.3328,4329.5,4328.9,3.2078]
[1756779047193,0.5024,4329.7,4329.1,0.95833022]
[1756779047392,0.2928,4329.6,4329.2,0.237]
[1756779047588,0.2928,4329.9,4329.3,0.41573]
[1756779047789,0.2096,4330.3,4329.5,0.4157]
[1756779047989,0.4057,4330.0,4329.9,3.2078]
[1756779048194,0.6985,4329.9,4329.8,0.237]
[1756779048394,0.2928,4329.8,4329.2,3.2078]
[1756779048696,1.08153022,4330.0,4329.2,3.2078]
[1756779048697,0.4057,4329.6,4329.2,3.2078]
[1756779048896,0.5024,4329.9,4329.3,0.237]
[1756779049104,0.5024,4329.9,4329.3,0.65273]
[1756779049298,0.5024,4329.9,4329.3,0.237]
[1756779049898,0.1961,4329.5,4329.4,0.237]
[1756779050099,0.8217,4329.5,4329.4,0.237]
[1756779050799,0.5289,4329.5,4329.2,3.2078]
[1756779051104,0.6985,4329.4,4329.3,0.237]
[1756779052706,1.8939,4329.6,4329.3,0.237]
[1756779052901,2.1867,4329.6,4329.3,0.237]
[1756779053103,0.1961,4329.3,4329.2,3.2078]
[1756779053308,0.6985,4329.3,4329.2,44.2448]
[1756779054110,0.6985,4329.3,4329.2,3.4448]
[1756779054310,0.6985,4329.3,4328.7,3.2078]
[1756779054605,1.65683022,4328.8,4328.7,3.2078]
[1756779057810,0.6985,4328.8,4328.7,3.2078]
[1756779058006,0.2928,4329.4,4328.7,7.43881]
[1756779058202,0.2928,4329.8,4329.3,4.16613022]
[1756779058404,0.95833022,4330.2,4329.4,0.237]
[1756779058601,0.3328,4329.5,4329.3,3.2078]
[1756779058799,0.5024,4329.4,4329.3,3.4448]
[1756779059606,0.5024,4329.4,4329.0,40.8]
[1756779059607,0.2928,4329.3,4329.0,40.8]
[1756779059812,0.2928,4329.2,4329.1,0.237]
[1756779060011,0.2928,4329.2,4329.1,3.4448]
[1756779060603,0.2928,4329.2,4329.1,0.237]
[1756779060807,0.6985,4329.2,4329.1,3.4448]
[1756779061008,0.5024,4329.2,4329.1,3.4448]
[1756779061312,0.5024,4329.2,4329.1,3.448]
[1756779061608,0.2928,4329.5,4329.2,0.001]
[1756779061812,0.2928,4329.5,4329.4,0.0032]
[1756779062014,0.5024,4329.5,4329.4,0.0032]
[1756779062810,0.8217,4329.5,4329.4,0.2386]
[1756779063115,0.6985,4329.4,4329.3,0.237]
[1756779063310,0.2096,4328.7,4328.6,3.2094]
[1756779063508,0.5024,4328.7,4328.6,3.4464]
[1756779063708,0.6985,4328.7,4328.6,3.2078]
[1756779064914,0.6985,4328.7,4328.6,3.2094]
[1756779065518,1.51263729,4328.7,4328.6,3.2094]
[1756779067021,1.51263729,4328.7,4328.6,3.211]
[1756779069421,0.5024,4328.2,4328.1,0.2402]
[1756779069809,0.6985,4328.2,4328.1,0.237]
[1756779070009,0.6985,4328.1,4328.0,3.2078]
[1756779070215,0.6985,4328.1,4328.0,3.2094]
[1756779070410,0.6985,4328.1,4328.0,3.211]
[1756779070620,0.6985,4328.1,4328.0,3.2078]
[1756779071216,0.4154,4328.0,4327.5,3.2078]
[1756779071421,0.6915,4327.6,4327.5,3.4448]
[1756779071823,1.50563729,4327.6,4327.5,3.4448]
[1756779072619,1.50563729,4327.6,4327.5,3.2078]
[1756779072820,0.6915,4327.1,4327.0,3.2078]
[1756779073025,1.50563729,4327.1,4327.0,3.2078]
[1756779075020,0.3201,4327.5,4327.0,4.02193729]
[1756779075225,0.3201,4327.5,4327.0,3.4448]
[1756779075226,0.1981,4327.1,4327.0,3.4448]
[1756779075619,0.2934,4327.4,4327.0,3.4448]
[1756779075820,1.01223729,4327.7,4327.0,3.4448]
[1756779075821,0.2934,4327.9,4327.3,0.81413729]
[1756779076014,0.237,4328.1,4327.6,0.81413729]
[1756779076226,0.2934,4328.1,4327.7,0.237]
[1756779076427,1.5435,4328.2,4327.7,0.237]
[1756779076626,0.1981,4328.1,4327.7,0.237]
[1756779076827,1.5435,4328.2,4327.7,0.237]
[1756779077029,0.2934,4328.1,4327.7,0.237]
[1756779077231,1.3454,4328.2,4327.9,0.81413729]
[1756779077429,1.3454,4328.2,4328.0,0.237]
[1756779077619,1.6388,4328.2,4328.0,0.237]
[1756779078019,0.2934,4328.1,4328.0,0.237]
[1756779078528,0.6915,4328.1,4328.0,0.237]
[1756779079730,0.6915,4328.1,4327.5,3.2078]
[1756779079929,0.2934,4328.0,4327.6,0.65289]
[1756779080230,0.2934,4328.1,4327.7,40.8]
[1756779080426,0.4915,4328.1,4328.0,3.2078]
[1756779080627,0.6915,4328.1,4328.0,3.2078]
[1756779081230,0.8135,4328.0,4327.9,0.237]
[1756779081930,0.8135,4328.0,4327.7,40.8]
[1756779081931,0.2934,4327.9,4327.8,0.237]
[1756779082126,0.4915,4327.9,4327.8,0.237]
[1756779082535,0.3981,4327.9,4327.7,40.8]
[1756779082831,0.2934,4327.8,4327.7,40.8]
[1756779083130,0.6915,4327.4,4327.3,3.2078]
[1756779083525,0.6915,4327.4,4327.3,44.0078]
[1756779083726,0.6915,4327.4,4327.3,44.2448]
[1756779083926,0.4915,4327.4,4327.3,44.0078]
[1756779084131,0.6915,4327.4,4327.3,3.4448]
[1756779084632,0.4915,4327.4,4327.3,3.4448]
[1756779084930,0.2934,4327.4,4327.3,3.4448]
[1756779087534,1.3454,4328.2,4327.5,0.4159]
[1756779087727,0.1981,4327.9,4327.8,3.2078]
[1756779087928,0.3981,4327.9,4327.8,0.237]
[1756779088533,0.6915,4327.9,4327.8,0.237]
[1756779088832,0.6915,4327.4,4327.3,3.4448]
[1756779089831,0.4915,4327.9,4327.3,3.4448]
[1756779090030,0.1981,4327.9,4327.3,3.4448]
[1756779090231,0.2934,4327.7,4327.3,3.4448]
[1756779090431,0.4915,4327.4,4327.3,3.4448]
[1756779091332,0.2934,4327.4,4327.3,3.4448]
[1756779092033,0.4915,4327.4,4327.3,3.4448]
[1756779092233,0.4915,4327.4,4327.3,3.2078]
[1756779092433,0.4915,4327.4,4327.3,3.4448]
[1756779092637,0.2934,4327.4,4327.3,3.4448]
[1756779093128,0.2934,4327.9,4327.3,7.4448]
[1756779093327,0.2934,4327.9,4327.8,3.2078]
[1756779093523,1.3454,4328.2,4327.8,3.4448]
[1756779093729,1.6388,4328.2,4327.8,3.4448]
[1756779094125,1.3454,4328.2,4327.8,3.4448]
[1756779094325,0.2934,4328.1,4327.8,3.4448]
[1756779095335,1.3454,4328.2,4327.8,3.4448]
[1756779095535,1.6388,4328.2,4327.8,3.4448]
[1756779095836,0.2934,4328.1,4327.8,3.4448]
[1756779096834,0.2934,4328.1,4327.9,40.8]
[1756779097038,0.2934,4328.1,4328.0,0.237]
[1756779098035,1.6388,4328.2,4328.0,0.237]
[1756779098234,1.3454,4328.2,4328.0,0.237]
[1756779098432,0.2934,4328.1,4328.0,0.237]
[1756779099033,0.4915,4328.1,4328.0,0.237]
[1756779099226,0.1981,4328.1,4327.9,40.8]
[1756779099433,0.2934,4328.0,4327.9,40.8]
[1756779099735,0.2934,4328.0,4327.9,41.037]
[1756779100036,0.4154,4328.0,4327.9,41.037]
[1756779100230,0.4154,4328.0,4327.9,40.8]
[1756779100424,0.4154,4328.0,4327.9,41.037]
[1756779100637,0.8135,4328.0,4327.9,0.237]
[1756779101737,0.7013,4327.4,4327.3,3.2078]
[1756779101930,0.7013,4327.4,4327.3,3.4448]
[1756779102528,0.7013,4327.4,4327.3,3.4459]
[1756779103238,0.7013,4327.4,4327.3,3.4448]
[1756779104432,0.4959,4327.4,4327.3,3.447]
[1756779104633,0.2909,4327.4,4327.3,3.447]
[1756779107833,0.7013,4327.4,4327.3,3.447]
[1756779109038,0.4959,4327.4,4327.3,3.447]
[1756779110241,0.7013,4327.4,4327.3,3.447]
[1756779110541,0.7013,4327.4,4327.3,0.237]
[1756779110847,0.2909,4327.3,4326.9,40.8]
[1756779111049,0.7013,4327.1,4327.0,0.2381]
[1756779112149,0.2909,4327.4,4327.0,0.2392]
[1756779112454,0.2909,4327.9,4327.0,0.2392]
[1756779113452,0.7013,4327.1,4327.0,0.0011]
[1756779113651,0.7013,4327.1,4327.0,0.2381]
[1756779114153,0.7013,4327.1,4327.0,0.2392]
[1756779114757,0.7013,4327.1,4327.0,0.0022]
[1756779114956,0.7013,4327.1,4327.0,0.2381]
[1756779117658,0.7013,4327.1,4327.0,0.2392]
[1756779118459,0.7013,4327.1,4327.0,0.237]
[1756779118658,0.4161,4327.0,4326.9,40.8]
[1756779118858,0.4161,4327.0,4326.9,41.037]
[1756779119352,0.8265,4327.0,4326.9,0.237]
[1756779120356,0.8265,4327.0,4326.8,3.2078]
[1756779120357,0.5356,4327.0,4326.8,3.2078]
[1756779120554,0.7013,4326.9,4326.8,3.4448]
[1756779120760,0.7013,4326.9,4326.8,3.2078]
[1756779121962,0.7013,4326.9,4326.8,3.2102]
[1756779122155,0.2909,4327.4,4326.8,3.4472]
[1756779122660,0.1252,4327.5,4326.8,3.4472]
[1756779123053,0.2909,4327.4,4326.8,3.4472]
[1756779123254,0.1252,4327.5,4326.8,3.4472]
[1756779123449,0.205,4326.9,4326.8,3.4472]
[1756779123654,0.4959,4326.9,4326.8,3.4472]
[1756779124861,0.7013,4326.9,4326.8,3.4472]
[1756779126560,0.7013,4326.9,4326.8,3.2102]
[1756779126760,0.7013,4326.9,4326.8,3.4448]
[1756779127460,0.5324,4328.0,4327.9,0.0013]
[1756779127658,0.5324,4328.0,4327.9,0.0026]
[1756779127867,3.2078,4328.9,4327.9,0.2396]
[1756779128165,0.7013,4328.7,4328.6,0.0013]
[1756779128861,0.2909,4329.4,4328.6,0.2396]
[1756779129160,0.7013,4329.4,4329.3,0.0013]
[1756779129356,0.4104,4329.2,4328.4,3.2078]
[1756779129557,0.205,4328.6,4328.5,0.2396]
[1756779129759,0.4959,4328.6,4328.5,0.2396]
[1756779130067,0.7013,4328.6,4328.5,0.2383]
[1756779130259,0.7013,4328.6,4328.5,0.237]
[1756779130453,3.333,4329.5,4328.5,0.0026]
[1756779130653,0.2909,4329.4,4328.5,0.2396]
[1756779132165,0.4938,4329.4,4328.9,3.2078]
[1756779132469,0.2029,4329.4,4329.0,0.237]
[1756779132669,0.1252,4329.5,4329.0,0.237]
[1756779132867,0.2029,4329.4,4329.0,0.237]
[1756779133168,0.1252,4329.5,4329.0,0.237]
[1756779133355,0.5176,4329.4,4329.0,0.237]
[1756779133965,0.3281,4329.5,4329.0,0.237]
[1756779134164,0.3147,4329.9,4329.0,0.237]
[1756779134370,0.5176,4329.9,4329.0,0.237]
[1756779134761,3.333,4330.0,4329.1,40.8]
[1756779134966,0.5176,4329.2,4329.1,40.8]
[1756779136066,0.1251,4329.5,4328.9,3.2078]
[1756779136067,0.8327,4329.0,4328.9,3.2078]
[1756779137274,0.8327,4329.0,4328.7,0.237]
[1756779137467,0.8327,4329.0,4328.3,3.2078]
[1756779137468,0.7076,4328.4,4328.3,3.2078]
[1756779137675,0.5176,4328.3,4327.9,3.2078]
[1756779137972,0.2029,4328.3,4327.9,3.4448]
[1756779138171,0.2029,4328.2,4327.9,3.4448]
[1756779138370,0.3147,4328.4,4327.9,3.4448]
[1756779138776,0.1251,4328.5,4327.9,3.4448]
[1756779138968,0.3147,4328.4,4327.9,3.4448]
[1756779139274,0.1251,4328.5,4327.9,3.4448]
[1756779139766,0.2029,4328.4,4327.9,3.4448]
[1756779140272,0.5176,4328.4,4327.9,3.4448]
[1756779140469,0.1251,4328.5,4327.9,3.4448]
[1756779140770,0.3147,4328.4,4327.9,3.4448]
[1756779141071,0.2029,4328.3,4327.9,3.4448]
[1756779141268,0.3151,4328.0,4327.9,3.4448]
[1756779141468,0.8327,4328.0,4327.9,3.4448]
[1756779141870,0.7076,4328.0,4327.9,3.4448]
[1756779142072,0.5176,4328.0,4327.9,3.4448]
[1756779142369,0.8327,4328.0,4327.9,3.4448]
[1756779142969,0.8327,4328.0,4327.9,3.2078]
[1756779144078,0.7076,4327.4,4327.3,3.2078]
[1756779144570,0.7076,4327.4,4327.3,3.4448]
[1756779144767,0.5176,4327.4,4327.3,3.2078]
[1756779144968,0.7076,4327.4,4327.3,3.4448]
[1756779148177,0.7076,4327.4,4327.3,0.237]
[1756779149679,0.3147,4327.4,4327.3,3.4448]
[1756779150175,3.2078,4328.4,4327.3,3.67589]
[1756779150176,0.3147,4327.9,4327.3,3.67589]
[1756779150878,0.5176,4327.9,4327.3,3.4448]
[1756779151371,0.7076,4327.9,4327.8,3.2078]
[1756779151568,0.3147,4328.4,4327.8,3.4448]
[1756779151879,0.7076,4327.9,4327.8,3.4448]
[1756779152678,0.7076,4327.9,4327.8,0.237]
[1756779154481,0.3929,4327.7,4327.6,0.237]
[1756779154668,0.7076,4327.7,4327.6,0.237]
[1756779155780,0.3147,4327.6,4327.4,0.237]
[1756779155974,0.1251,4328.0,4327.4,0.237]
[1756779155975,0.5176,4327.5,4327.4,0.237]
[1756779156282,0.3147,4327.4,4327.3,3.2078]
[1756779156482,0.7076,4327.4,4327.3,3.4448]
[1756779159882,0.7076,4327.4,4327.3,3.2078]
[1756779160284,4.7076,4327.4,4327.3,3.2078]
[1756779163580,0.7022,4326.8,4326.7,3.4448]
[1756779175202,0.7022,4326.8,4326.7,3.2078]
[1756779180705,0.3063,4326.8,4326.7,3.2078]
[1756779181697,0.3063,4327.4,4326.7,7.67592]
[1756779182004,3.5141,4328.1,4327.2,3.2078]
[1756779182303,3.7038,4328.1,4327.3,41.037]
[1756779182502,0.3063,4328.0,4327.3,41.26807]
[1756779182802,0.3063,4328.2,4327.3,41.037]
[1756779182997,0.1897,4327.5,4327.4,0.237]
[1756779183312,0.3063,4327.5,4327.4,0.237]
[1756779183705,0.126,4328.0,4327.4,0.237]
[1756779184000,0.496,4327.9,4327.4,0.237]
[1756779184199,0.7022,4327.5,4327.2,44.0078]
[1756779184398,0.7022,4327.3,4327.2,3.2078]
[1756779184596,0.496,4327.2,4327.1,0.237]
[1756779184800,0.3063,4327.1,4326.6,3.2078]
[1756779184994,0.1897,4327.0,4326.9,0.237]
[1756779185194,0.496,4327.0,4326.9,0.237]
[1756779185398,1.311083,4327.0,4326.9,0.237]
[1756779189807,0.1897,4326.7,4326.6,3.2078]
[1756779190104,0.7022,4326.7,4326.6,3.4448]
[1756779190703,0.7022,4326.7,4326.6,3.2078]
[1756779190904,0.7022,4326.7,4326.6,3.4448]
[1756779192302,0.496,4326.7,4326.6,3.4448]
[1756779194401,0.3027,4327.4,4326.6,7.67593]
[1756779194598,0.5044,4327.6,4327.1,3.2078]
[1756779194804,0.625,4327.5,4327.2,0.237]
[1756779195503,0.3621,4328.5,4327.2,0.237]
[1756779195504,0.3027,4328.4,4327.4,0.815083]
[1756779195711,0.3027,4328.2,4327.8,0.815083]
[1756779195896,0.3027,4328.3,4327.9,0.237]
[1756779196605,3.2078,4328.5,4327.9,0.237]
[1756779196606,0.3027,4328.4,4327.9,0.237]
[1756779197099,0.5044,4328.4,4327.9,0.237]
[1756779197799,0.3027,4328.3,4327.9,0.237]
[1756779198602,0.2017,4328.4,4327.9,0.237]
[1756779198803,0.3027,4328.6,4328.3,0.815083]
[1756779199000,0.3027,4328.9,4328.4,0.237]
[1756779199205,0.3027,4328.9,4328.8,4.022883]
[1756779199400,0.3027,4328.9,4328.8,4.259883]
[1756779199806,0.3027,4329.4,4328.8,4.259883]
[1756779200002,0.2017,4329.3,4328.8,4.259883]
[1756779200202,0.3027,4329.4,4328.8,4.259883]
[1756779200502,0.3027,4329.2,4328.8,4.259883]
[1756779200699,0.3027,4329.0,4328.8,4.259883]